Workbook

Sheet PFP
A1: PROPOSTA FINANCEIRA DO PROJETO | J1: CODIGO:
J2: PFP
A3: NOME DA CONSULTORA:
A5: PROJETO: | F5: CONTRATANTE: | J5: BASE: Nov/2023
A6: DIAGNÓSTICO E READEQUAÇÃO DE PROJETO BÁSICO PARA CONCLUSÃO DO SISTEMA DE ABASTECIMENTO DE ÁGUA PARA CONSUMO HUMANO EM COMUNIDADES DIFUSAS DO MUNICÍPIO DE PÃO DE AÇÚCAR, NO ESTADO DE ALAGOAS. | F6: 5ª SUPERINTENDÊNCIA REGIONAL DA CODEVASF | J6: PROP: Nov/2023 CODEVASF: fev/2020 SICRO/AL: Julho/2023 EMBASA: Maio/2023 ORSE: Set/2023 SINAPI: Set/2023
A7: Base | B7: Cod2 | C7: Cod3 | D7: Categoria / Insumo | E7: Uni | F7: Qde | G7: CUD | H7: PU | I7: FatorK | J7: CT | K7: PT
A8: SICRO | B8: MO3 | C8: P0 | D8: Engenheiro coordenador (P8061) | E8: mês | F8: 0.5 | H8: =ROUND(I8*G8,2) -> 0 | I8: =PFP2.3_FatorKc!E36 -> 1.4179 | J8: =ROUND(F8*G8,2) -> 0 | K8: =ROUND(F8*H8,2) -> 0
A9: SICRO | B9: MO2 | C9: P1 | D9: Engenheiro sênior (P8067) | E9: mês | F9: 0.5 | H9: 0 | I9: =PFP2.2_FatorKb!E36 -> 1.6645 | J9: 0 | K9: 0
A10: SICRO | B10: MO1 | C10: P2 | D10: Engenheiro pleno (P8066) | E10: mês | F10: 2 | H10: =ROUND(I10*G10,2) -> 0 | I10: =PFP2.1_FatorKa!$E$36 -> 2.2776 | J10: =ROUND(F10*G10,2) -> 0 | K10: 0
A11: SICRO | B11: MO1 | C11: P3 | D11: Engenheiro júnior (P8065) | E11: mês | F11: 2 | H11: =ROUND(I11*G11,2) -> 0 | I11: =PFP2.1_FatorKa!$E$36 -> 2.2776 | J11: =ROUND(F11*G11,2) -> 0 | K11: 0
A12: SICRO | B12: MO1 | C12: T1 | D12: Técnico de projetos/obra (P8147) | E12: mês | F12: 3 | H12: 0 | I12: =PFP2.1_FatorKa!$E$36 -> 2.2776 | J12: 0 | K12: 0
A13: SICRO | B13: EC | C13: ECA | D13: Encargos Comp. e Adicionais | E13: mês | F13: =SUM(F9:F12) -> 7.5 | H13: 0 | I13: =PFP3_FatorKd!$E$17 -> 1.2329 | J13: =ROUND(F13*G13,2) -> 0 | K13: =ROUND(F13*H13,2) -> 0
A14: SICRO | B14: EC | C14: AT2 | D14: Auxilio Transporte Técnicos | E14: mês | F14: =F12 -> 3 | H14: =ROUND(I14*G14,2) -> 0 | I14: =PFP3_FatorKd!$E$17 -> 1.2329 | J14: =ROUND(F14*G14,2) -> 0 | K14: =ROUND(F14*H14,2) -> 0
A15: CODE | B15: LO | C15: V1 | D15: Diárias | E15: dia | F15: 40 | H15: 0 | I15: =PFP3_FatorKd!$E$17 -> 1.2329 | J15: 0 | K15: 0
A16: PROP | B16: LO | C16: V2 | D16: Pick-up cabine dupla 4x4, com ar-condicionado, incluindo despesas com combustível, óleos, conservação e manutenção | E16: dia | F16: 10 | G16: ='CCU VEÍCULO'!D53 -> 0 | H16: 0 | I16: =PFP3_FatorKd!$E$17 -> 1.2329 | J16: 0 | K16: 0
A17: CODE | B17: EM | C17: M1 | D17: Relatório Parcial | E17: un | F17: 3 | H17: 0 | I17: =PFP3_FatorKd!$E$17 -> 1.2329 | J17: 0 | K17: =ROUND(F17*H17,2) -> 0
A18: CODE | B18: EM | C18: M2 | D18: Relatório Final | E18: un | F18: 1 | H18: 0 | I18: =PFP3_FatorKd!$E$17 -> 1.2329 | J18: 0 | K18: 0
A19: CODE | B19: SU | C19: TOP | D19: Total Serviços Topográficos | E19: un | F19: 1 | G19: - | H19: =PFP1.1_Topo!G16 -> 0 | I19: - | J19: - | K19: 0
A20: CODE | B20: SU | C20: TÉC | D20: Total Serviços Técnicos | E20: un | F20: 1 | G20: - | H20: =PFP1.2_Téc!G12 -> 0 | I20: - | J20: - | K20: 0
A21: CODE | B21: SU | C21: GEO | D21: Total Serviços Geotécnicos | E21: un | F21: 1 | G21: - | H21: =PFP1.3_Geo!G14 -> 0 | I21: - | J21: - | K21: 0
A22: CODE | B22: SU | C22: AMB | D22: Total Serviços Ambientais | E22: un | F22: 1 | G22: - | H22: =PFP1.4_Amb!G38 -> 0 | I22: - | J22: - | K22: 0
A23: TOTAL DOS CUSTOS DIRETOS | H23: =SUM(J8:J22) -> 0
A24: TOTAL DOS ENCARGOS E DISPESAS DIVERSAS | H24: =H25-H23 -> 0
A25: TOTAL DA PROPOSTA A PREÇO GLOBAL | H25: =SUM(K8:K18) -> 0
A26: TOTAL DA PROPOSTA A PREÇO UNITÁRIO | H26: =SUM(K19:K22) -> 0
A27: TOTAL DA PROPOSTA | H27: =H25+H26 -> 0
A28: OBSERVAÇÃO:
A29: Alocar os Insumos MO, com respectivo FatorK, dentro da categoria de vínculo contratual (celetista, autonomo, societario)
A30: Uni - unidade de medição do insumo;
A31: Qde - Quantidade do Insumo (não pode ocorrer alteração pela Licitante)
A32: CUD - Custo Unitário Direto do Insumo (sem encargos, taxas e impostos, valor não pode ser maior que o Orçado pela Codevasf)
A33: CT - Custo Total (sem encargos, taxas e impostos) - CT = Qde x CUD
A34: FatorK - Taxa de Ressarcimento de Despesas e Encargos (detalhar composição nas Planilhas "PFP2.1", "PFP2.2", "PFP3")
A35: PU - Preço Unitário do Insumo (incluído encargos, taxas e impostos) - PU = CUD x FatorK
A36: PT - Preço Total do Insumo (incluído encargos, taxas e impostos) - PT = Qde x PU
A37: P - Profissionais nível superior nas áreas de Engenharia, Química, Arquitetura, Agronomia e Veterinária, conforme disposições da Lei 4.950-A/66
A38: S - Profissionais de nível superior nas demais áreas de atuação, incluindo Arqueólogo, Biólogo, Geógrafo e Sociólogo
A39: T - Profissionais de nível médio técnico nas diversas áreas de atuação
A40: A - Profissionais de nível médio de apoio técnico-administrativo
A41: Encargos complementares e adicionais contempla: alimentação, EPI, assistência médica, seguro de vida e exame ocupacional.

Sheet PFP1.1_Topo
A1: SERVIÇOS TOPOGRÁFICOS/CARTOGRÁFICOS | G1: CODIGO:
G2: PFP-1.1
A3: NOME DA EMPRESA:
A5: PROJETO: | E5: CONTRATANTE: | G5: =PFP!J5 -> BASE: Nov/2023
A6: =PFP!A6 -> DIAGNÓSTICO E READEQUAÇÃO DE PROJETO BÁSICO PARA CONCLUSÃO DO SISTEMA DE ABASTECIMENTO DE ÁGUA PARA CONSUMO HUMANO EM COMUNIDADES DIFUSAS DO MUNICÍPIO DE PÃO DE AÇÚCAR, NO ESTADO DE ALAGOAS. | E6: =PFP!F6 -> 5ª SUPERINTENDÊNCIA REGIONAL DA CODEVASF | G6: =PFP!J6 -> PROP: Nov/2023 CODEVASF: fev/2020 SICRO/AL: Julho/2023 EMBASA: Maio/2023 ORSE: Set/2023 SINAPI: Set/2023
A7: Cod. | B7: Base | C7: Insumos | D7: Uni | E7: Qde | F7: Preço Unitário (PU) | G7: Preço Total (PT)
A8: COTAÇÃO | B8: COTAÇÃO | C8: Serviço de aerofotogrametria com aeronave devidamente homologada pela Agência Nacional de Aviação Civil (ANAC), na categoria de Serviço Aéreo Especializado (SAE),para a geração das ortofotos (fotos aéreas georreferenciadas e corrigidas de distorções do relevo e acidentes geográficos) | D8: ha | E8: 5 | G8: =ROUND(F8*E8,2) -> 0
A9: COTAÇÃO | B9: COTAÇÃO | C9: Geração de Nuvem de pontos bruta (sem classificação) | D9: ha | E9: 5 | G9: 0
A10: COTAÇÃO | B10: COTAÇÃO | C10: Nuvem de pontos classificada, modelo digital de terreno e modelo digital de superfície | D10: ha | E10: 5 | G10: 0
A11: TP19 | B11: CODE | C11: Pontos GPS de dupla frequência (L1/L2) | D11: km | E11: 3 | G11: 0
A12: TP27 | B12: CODE | C12: Marco de Concreto (12x18x60cm) | D12: un | E12: =E11 -> 3 | G12: 0
A13: TP28 | B13: CODE | C13: Estaca Testemunha de Madeira (2x4x70cm) | D13: un | E13: 50 | G13: 0
A14: TP29 | B14: CODE | C14: Piquetes de Madeira (2x2x20cm) | D14: un | E14: 500 | G14: 0
A15: PD06 | B15: CODE | C15: Picada Manual p/ levantamento TP | D15: km | E15: 5 | G15: 0
A16: TOTAL SERVIÇOS TOPOGRÁFICOS | G16: =SUM(G8:G15) -> 0
A17: OBSERVAÇÃO:
A18: Uni - unidade de medição do insumo;
A19: Qde - Quantidade do Insumo (não pode ocorrer alteração pela Licitante)
A20: PU - Preço Unitário (tal qual as composições padrão da Codevasf, já incluso o fator K / BDI de 20,32%)
A21: PT - Preço Total (incluído encargos, taxas e impostos) - PT = Qde x PU
F26: 40
F27: =F26/8 -> 5
F105: =G16/30 -> 0

Sheet PFP1.2_Téc
A1: SERVIÇOS TÉCNICOS | G1: CODIGO:
G2: PFP-1.2
A3: NOME DA EMPRESA:
A5: PROJETO: | E5: CONTRATANTE: | G5: =PFP!J5 -> BASE: Nov/2023
A6: =PFP!A6 -> DIAGNÓSTICO E READEQUAÇÃO DE PROJETO BÁSICO PARA CONCLUSÃO DO SISTEMA DE ABASTECIMENTO DE ÁGUA PARA CONSUMO HUMANO EM COMUNIDADES DIFUSAS DO MUNICÍPIO DE PÃO DE AÇÚCAR, NO ESTADO DE ALAGOAS. | E6: =PFP!F6 -> 5ª SUPERINTENDÊNCIA REGIONAL DA CODEVASF | G6: =PFP!J6 -> PROP: Nov/2023 CODEVASF: fev/2020 SICRO/AL: Julho/2023 EMBASA: Maio/2023 ORSE: Set/2023 SINAPI: Set/2023
A7: Cod. | B7: Base | C7: Insumos | D7: Uni | E7: Qde | F7: Preço Unitário (PU) | G7: Preço Total (PT)
A8: 6098 | B8: ORSE | C8: Cadastro de redes de água/adutora | D8: m | E8: 17000 | G8: =ROUND(F8*E8,2) -> 0
A9: 4673 | B9: ORSE | C9: Batimetria com seções transversais | D9: km | E9: 1 | G9: 0
A10: 2829 | B10: ORSE | C10: Limpeza, desinfecção e teste de redes de abastecimento de água | D10: m | E10: 17000 | G10: 0
A11: 13583 | B11: ORSE | C11: Levantamento cadastral de áreas (ETA e 3 estações elevatórias) | D11: m2 | E11: 2800 | G11: =ROUND(F11*E11,2) -> 0
A12: TOTAL SERVIÇOS GEOTÉCNICOS | G12: =SUM(G8:G11) -> 0
A13: LEGENDA:
A14: Uni - unidade de medição do insumo;
A15: Qde - Quantidade do Insumo (não pode ocorrer alteração pela Licitante)
A16: PU - Preço Unitário (tal qual as composições padrão da Codevasf, já incluso o fator K / BDI de 20,32%)
A17: PT - Preço Total (incluído encargos, taxas e impostos) - PT = Qde x PU
F129: =G12/30 -> 0

Sheet PFP1.3_Geo
A1: SERVIÇOS GEOLÓGICOS/GEOTÉCNICOS | G1: CODIGO:
G2: PFP-1.2
A3: NOME DA EMPRESA:
A5: PROJETO: | E5: CONTRATANTE: | G5: =PFP!J5 -> BASE: Nov/2023
A6: =PFP!A6 -> DIAGNÓSTICO E READEQUAÇÃO DE PROJETO BÁSICO PARA CONCLUSÃO DO SISTEMA DE ABASTECIMENTO DE ÁGUA PARA CONSUMO HUMANO EM COMUNIDADES DIFUSAS DO MUNICÍPIO DE PÃO DE AÇÚCAR, NO ESTADO DE ALAGOAS. | E6: =PFP!F6 -> 5ª SUPERINTENDÊNCIA REGIONAL DA CODEVASF | G6: =PFP!J6 -> PROP: Nov/2023 CODEVASF: fev/2020 SICRO/AL: Julho/2023 EMBASA: Maio/2023 ORSE: Set/2023 SINAPI: Set/2023
A7: Cod. | B7: Base | C7: Insumos | D7: Uni | E7: Qde | F7: Preço Unitário (PU) | G7: Preço Total (PT)
A8: GT07 | B8: CODE | C8: Sondagem Percussão: (Des)Mobilização | D8: un | E8: 2 | G8: =ROUND(F8*E8,2) -> 0
A9: GT08 | B9: CODE | C9: Sondagem Percursão: com SPT | D9: m | E9: 6 | G9: 0
A10: GT09 | B10: CODE | C10: Sondagem Percursão: Desloc/Instalação 0-200 m | D10: un | E10: 1 | G10: 0
A11: GT10 | B11: CODE | C11: Sondagem Percursão: Desloc/Instalação 201-500 m | D11: un | E11: 1 | G11: 0
A12: GT11 | B12: CODE | C12: Sondagem Percursão: Desloc/Instalação >500 m | D12: un | E12: 1 | G12: 0
A13: GT13 | B13: CODE | C13: Sondagem Trado 4'' | D13: m | E13: 150 | G13: 0
A14: TOTAL SERVIÇOS GEOTÉCNICOS | G14: =SUM(G8:G13) -> 0
A15: LEGENDA:
A16: Uni - unidade de medição do insumo;
A17: Qde - Quantidade do Insumo (não pode ocorrer alteração pela Licitante)
A18: PU - Preço Unitário (composições padrão da Codevasf, já incluso o FatorK)
A19: PT - Preço Total (incluído encargos, taxas e impostos) - PT = Qde x PU

Sheet PFP1.4_Amb
A1: SERVIÇOS ANÁLISE AMBIENTAL | G1: CODIGO:
G2: PFP-1.3
A3: NOME DA EMPRESA:
A5: PROJETO: | E5: CONTRATANTE: | G5: =PFP!J5 -> BASE: Nov/2023
A6: =PFP!A6 -> DIAGNÓSTICO E READEQUAÇÃO DE PROJETO BÁSICO PARA CONCLUSÃO DO SISTEMA DE ABASTECIMENTO DE ÁGUA PARA CONSUMO HUMANO EM COMUNIDADES DIFUSAS DO MUNICÍPIO DE PÃO DE AÇÚCAR, NO ESTADO DE ALAGOAS. | E6: =PFP!F6 -> 5ª SUPERINTENDÊNCIA REGIONAL DA CODEVASF | G6: =PFP!J6 -> PROP: Nov/2023 CODEVASF: fev/2020 SICRO/AL: Julho/2023 EMBASA: Maio/2023 ORSE: Set/2023 SINAPI: Set/2023
A7: Cod. | B7: Base | C7: Insumos | D7: Uni | E7: Qde | F7: Preço Unitário (PU) | G7: Preço Total (PT)
A8: F099703036 | B8: Embasa | C8: Alcalinidade Total | D8: un | E8: 1 | G8: =ROUND(E8*F8,2) -> 0
A9: F099703032 | B9: Embasa | C9: Condutividade | D9: un | E9: 1 | G9: =ROUND(E9*F9,2) -> 0
A10: F099703035 | B10: Embasa | C10: DBO | D10: un | E10: 1 | G10: 0
A11: 33.01.14 | B11: Embasa | C11: DQO | D11: un | E11: 1 | G11: 0
A12: F099703031 | B12: Embasa | C12: Salinidade | D12: un | E12: 1 | G12: 0
A13: 33.01.44 | B13: Embasa | C13: Sólidos Dissolvidos Totais | D13: un | E13: 1 | G13: 0
A14: 33.01.46 | B14: Embasa | C14: Sólidos Suspensos | D14: un | E14: 1 | G14: 0
A15: 33.01.48 | B15: Embasa | C15: Sólidos Totais | D15: un | E15: 1 | G15: 0
A16: F099703034 | B16: Embasa | C16: Turbidez | D16: un | E16: 1 | G16: 0
A17: 33.01.38 | B17: Embasa | C17: Oxigênio Dissolvido | D17: un | E17: 1 | G17: 0
A18: F099703028 | B18: Embasa | C18: pH | D18: un | E18: 1 | G18: 0
A19: F099703027 | B19: Embasa | C19: Temperatura | D19: un | E19: 1 | G19: 0
A20: 33.01.23 | B20: Embasa | C20: Fósforo Total | D20: un | E20: 1 | G20: 0
A21: 33.01.30 | B21: Embasa | C21: Nitrogênio Amoniacal | D21: un | E21: 1 | G21: 0
A22: 33.01.33 | B22: Embasa | C22: Nitrogênio Nitrato | D22: un | E22: 1 | G22: 0
A23: 33.01.32 | B23: Embasa | C23: Nitrogênio Total | D23: un | E23: 1 | G23: 0
A24: F099703058 | B24: Embasa | C24: Clorofila A | D24: un | E24: 1 | G24: 0
A25: F099703057 | B25: Embasa | C25: Coliformes Termotolerantes | D25: un | E25: 1 | G25: 0
A26: F099703064 | B26: Embasa | C26: Metais Pesados - Alumínio | D26: un | E26: 1 | G26: =ROUND(E26*F26,2) -> 0
A27: F099703061 | B27: Embasa | C27: Metais Pesados - Arsênio | D27: un | E27: 1 | G27: 0
A28: F099703063 | B28: Embasa | C28: Metais Pesados - Bário | D28: un | E28: 1 | G28: =ROUND(E28*F28,2) -> 0
A29: F099703068 | B29: Embasa | C29: Metais Pesados - Cadmio | D29: un | E29: 1 | G29: 0
A30: F099703070 | B30: Embasa | C30: Metais Pesados - Chumbo | D30: un | E30: 1 | G30: 0
A31: F099703066 | B31: Embasa | C31: Metais Pesados - Cromo | D31: un | E31: 1 | G31: 0
A32: F099703062 | B32: Embasa | C32: Metais Pesados - Ferro | D32: un | E32: 1 | G32: 0
A33: F099703065 | B33: Embasa | C33: Metais Pesados - Manganês | D33: un | E33: 1 | G33: 0
A34: F099703069 | B34: Embasa | C34: Metais Pesados - Mercúrio | D34: un | E34: 1 | G34: 0
A35: F099703067 | B35: Embasa | C35: Metais Pesados - Zinco | D35: un | E35: 1 | G35: 0
A36: 33.01.40 | B36: Embasa | C36: Organoclorados | D36: un | E36: 1 | G36: 0
A37: 33.01.40 | B37: Embasa | C37: Organofosforado | D37: un | E37: 1 | G37: =ROUND(E37*F37,2) -> 0
A38: TOTAL SERVIÇOS ANÁLISE AMBIENTAL | G38: =SUM(G8:G37) -> 0
A39: LEGENDA:
A40: Uni - unidade de medição do insumo;
A41: Qde - Quantidade do Insumo (não pode ocorrer alteração pela Licitante)
A42: PU - Preço Unitário (já incluso BDI de 20,32%, tal qual as composições padrão da Codevasf)
A43: PT - Preço Total (incluído encargos, taxas e impostos) - PT = Qde x PU

Sheet PFP2.1_FatorKa
A1: DETALHAMENTO DOS ENCARGOS SOCIAIS: Ka | F1: CODIGO:
F2: PFP-2.1
A3: NOME DA CONSULTORA:
A5: PROJETO: | C5: CONTRATANTE: | F5: =PFP!J5 -> BASE: Nov/2023
A6: =PFP!A6 -> DIAGNÓSTICO E READEQUAÇÃO DE PROJETO BÁSICO PARA CONCLUSÃO DO SISTEMA DE ABASTECIMENTO DE ÁGUA PARA CONSUMO HUMANO EM COMUNIDADES DIFUSAS DO MUNICÍPIO DE PÃO DE AÇÚCAR, NO ESTADO DE ALAGOAS. | C6: =PFP!F6 -> 5ª SUPERINTENDÊNCIA REGIONAL DA CODEVASF | F6: =PFP!J6 -> PROP: Nov/2023 CODEVASF: fev/2020 SICRO/AL: Julho/2023 EMBASA: Maio/2023 ORSE: Set/2023 SINAPI: Set/2023
A7: Cod | B7: DESCRIÇÃO | E7: % | F7: R$
A8: A | B8: ENCARGOS SOCIAIS BÁSICOS | E8: =ROUND(SUM(E9:E17),4) -> 0.368 | F8: =ROUND(E8*SUMIF(PFP!$B$8:$B$20,"MO1",PFP!$J$8:$J$20),2) -> 0
A9: A1 | B9: INSS | E9: 0.2 | F9: =ROUND(E9*SUMIF(PFP!$B$8:$B$20,"MO1",PFP!$J$8:$J$20),2) -> 0
A10: A2 | B10: SESI | E10: 0.015 | F10: =ROUND(E10*SUMIF(PFP!$B$8:$B$20,"MO1",PFP!$J$8:$J$20),2) -> 0
A11: A3 | B11: SENAI | E11: 0.01 | F11: =ROUND(E11*SUMIF(PFP!$B$8:$B$20,"MO1",PFP!$J$8:$J$20),2) -> 0
A12: A4 | B12: INCRA | E12: 0.002 | F12: =ROUND(E12*SUMIF(PFP!$B$8:$B$20,"MO1",PFP!$J$8:$J$20),2) -> 0
A13: A5 | B13: SEBRAE | E13: 0.006 | F13: =ROUND(E13*SUMIF(PFP!$B$8:$B$20,"MO1",PFP!$J$8:$J$20),2) -> 0
A14: A6 | B14: Salário Educação | E14: 0.025 | F14: =ROUND(E14*SUMIF(PFP!$B$8:$B$20,"MO1",PFP!$J$8:$J$20),2) -> 0
A15: A7 | B15: Seguro Contra Acidentes de Trabalho | E15: 0.03 | F15: =ROUND(E15*SUMIF(PFP!$B$8:$B$20,"MO1",PFP!$J$8:$J$20),2) -> 0
A16: A8 | B16: FGTS | E16: 0.08 | F16: =ROUND(E16*SUMIF(PFP!$B$8:$B$20,"MO1",PFP!$J$8:$J$20),2) -> 0
A17: A9 | B17: SECONCI | F17: =ROUND(E17*SUMIF(PFP!$B$8:$B$20,"MO1",PFP!$J$8:$J$20),2) -> 0
A18: B | B18: ENCARGOS SOCIAIS QUE RECEBEM INCIDÊNCIA DE "A" | E18: =ROUND(SUM(E19:E25),4) -> 0.1609 | F18: =ROUND(E18*SUMIF(PFP!$B$8:$B$20,"MO1",PFP!$J$8:$J$20),2) -> 0
A19: B3 | B19: Auxílio Enfermidade | E19: 0.0066 | F19: =ROUND(E19*SUMIF(PFP!$B$8:$B$20,"MO1",PFP!$J$8:$J$20),2) -> 0
A20: B4 | B20: 13º Salário | E20: 0.0833 | F20: =ROUND(E20*SUMIF(PFP!$B$8:$B$20,"MO1",PFP!$J$8:$J$20),2) -> 0
A21: B5 | B21: Licença Paternidade | E21: 0.0006 | F21: =ROUND(E21*SUMIF(PFP!$B$8:$B$20,"MO1",PFP!$J$8:$J$20),2) -> 0
A22: B6 | B22: Faltas Justificadas | E22: 0.0056 | F22: =ROUND(E22*SUMIF(PFP!$B$8:$B$20,"MO1",PFP!$J$8:$J$20),2) -> 0
A23: B8 | B23: Auxílio Acidente de Trabalho | E23: 0.0008 | F23: =ROUND(E23*SUMIF(PFP!$B$8:$B$20,"MO1",PFP!$J$8:$J$20),2) -> 0
A24: B9 | B24: Férias Gozadas | E24: 0.0638 | F24: =ROUND(E24*SUMIF(PFP!$B$8:$B$20,"MO1",PFP!$J$8:$J$20),2) -> 0
A25: B10 | B25: Salário Maternidade | E25: 0.0002 | F25: =ROUND(E25*SUMIF(PFP!$B$8:$B$20,"MO1",PFP!$J$8:$J$20),2) -> 0
A26: C | B26: ENCARGOS SOCIAIS QUE NÃO RECEBEM INCIDÊNCIA DE "A" | E26: =ROUND(SUM(E27:E31),4) -> 0.106 | F26: =ROUND(E26*SUMIF(PFP!$B$8:$B$20,"MO1",PFP!$J$8:$J$20),2) -> 0
A27: C1 | B27: Aviso Prévio Indenizado | E27: 0.0362 | F27: =ROUND(E27*SUMIF(PFP!$B$8:$B$20,"MO1",PFP!$J$8:$J$20),2) -> 0
A28: C2 | B28: Aviso Prévio Trabalhado | E28: 0.0009 | F28: =ROUND(E28*SUMIF(PFP!$B$8:$B$20,"MO1",PFP!$J$8:$J$20),2) -> 0
A29: C3 | B29: Férias Indenizadas | E29: 0.0383 | F29: =ROUND(E29*SUMIF(PFP!$B$8:$B$20,"MO1",PFP!$J$8:$J$20),2) -> 0
A30: C4 | B30: Depósito Rescisão Sem Justa Causa | E30: 0.0276 | F30: =ROUND(E30*SUMIF(PFP!$B$8:$B$20,"MO1",PFP!$J$8:$J$20),2) -> 0
A31: C5 | B31: Indenização Adicional | E31: 0.003 | F31: =ROUND(E31*SUMIF(PFP!$B$8:$B$20,"MO1",PFP!$J$8:$J$20),2) -> 0
A32: D | B32: REINCIDÊNCIAS | E32: =ROUND(SUM(E33:E34),4) -> 0.0624 | F32: =ROUND(E32*SUMIF(PFP!$B$8:$B$20,"MO1",PFP!$J$8:$J$20),2) -> 0
A33: D1 | B33: Reincidência de "A" sobre "B" | E33: =ROUND(E8*E18,4) -> 0.0592 | F33: =ROUND(E33*SUMIF(PFP!$B$8:$B$20,"MO1",PFP!$J$8:$J$20),2) -> 0
A34: D2 | B34: Reincidência de "A" sobre Aviso Prévio Trabalhado e reincidência do FGTS sobre Aviso Prévio Indenizado | E34: =ROUND((E28*E8)+(E27*E16),4) -> 0.0032 | F34: =ROUND(E34*SUMIF(PFP!$B$8:$B$20,"MO1",PFP!$J$8:$J$20),2) -> 0
A35: K1a | B35: ENCARGOS SOCIAIS | E35: =ROUND(E8+E18+E26+E32,4) -> 0.6973 | F35: =ROUND(E35*SUMIF(PFP!$B$8:$B$20,"MO1",PFP!$J$8:$J$20),2) -> 0
A36: Ka | B36: TAXA DE RESSARCIMENTO DE DESPESAS E ENCARGOS SOBRE MO1 | E36: =ROUND((1+E35+PFP3_FatorKd!E13)*(1+PFP3_FatorKd!E12)*(1+PFP3_FatorKd!E8),4) -> 2.2776
A37: OBSERVAÇÃO: CELETISTAS E EQUIVALENTES
A38: 1 - DISCRIMINAR OS ENCARGOS SOCIAIS COM SEUS RESPECTIVOS PERCENTUAS TOTALIZANDO OS MESMOS.
A39: 2 - APLICAR O % TOTAL P/ CALCULAR OS E. SOCIAIS INCIDENTES NA MÃO-DE-OBRA CELETISTAS
A40: Ka - Taxa de Ressarcimento de Despesas e Encargos sobre a Mão de Obra CELETISTA (incide apenas no Insumo Codigo MO1)
A41: Ka = (1 + K1 + K2) x (1 + K3) x (1 + K4)

Sheet PFP2.2_FatorKb
A1: DETALHAMENTO DOS ENCARGOS SOCIAIS: Kb | F1: CODIGO:
F2: PFP-2.2
A3: NOME DA CONSULTORA:
A5: PROJETO: | C5: CONTRATANTE: | F5: =PFP!J5 -> BASE: Nov/2023
A6: =PFP!A6 -> DIAGNÓSTICO E READEQUAÇÃO DE PROJETO BÁSICO PARA CONCLUSÃO DO SISTEMA DE ABASTECIMENTO DE ÁGUA PARA CONSUMO HUMANO EM COMUNIDADES DIFUSAS DO MUNICÍPIO DE PÃO DE AÇÚCAR, NO ESTADO DE ALAGOAS. | C6: =PFP!F6 -> 5ª SUPERINTENDÊNCIA REGIONAL DA CODEVASF | F6: =PFP!J6 -> PROP: Nov/2023 CODEVASF: fev/2020 SICRO/AL: Julho/2023 EMBASA: Maio/2023 ORSE: Set/2023 SINAPI: Set/2023
A7: Cod | B7: DESCRIÇÃO | E7: % | F7: R$
A8: A | B8: ENCARGOS SOCIAIS BÁSICOS | E8: =ROUND(SUM(E9:E17),4) -> 0.2 | F8: =ROUND(E8*SUMIF(PFP!$B$8:$B$20,"MO2",PFP!$J$8:$J$20),2) -> 0
A9: A1 | B9: INSS | E9: 0.2 | F9: =ROUND(E9*SUMIF(PFP!$B$8:$B$20,"MO2",PFP!$J$8:$J$20),2) -> 0
A10: A2 | B10: SESI | F10: =ROUND(E10*SUMIF(PFP!$B$8:$B$20,"MO2",PFP!$J$8:$J$20),2) -> 0
A11: A3 | B11: SENAI | F11: =ROUND(E11*SUMIF(PFP!$B$8:$B$20,"MO2",PFP!$J$8:$J$20),2) -> 0
A12: A4 | B12: INCRA | F12: =ROUND(E12*SUMIF(PFP!$B$8:$B$20,"MO2",PFP!$J$8:$J$20),2) -> 0
A13: A5 | B13: SEBRAE | F13: =ROUND(E13*SUMIF(PFP!$B$8:$B$20,"MO2",PFP!$J$8:$J$20),2) -> 0
A14: A6 | B14: Salário Educação | F14: =ROUND(E14*SUMIF(PFP!$B$8:$B$20,"MO2",PFP!$J$8:$J$20),2) -> 0
A15: A7 | B15: Seguro Contra Acidentes de Trabalho | F15: =ROUND(E15*SUMIF(PFP!$B$8:$B$20,"MO2",PFP!$J$8:$J$20),2) -> 0
A16: A8 | B16: FGTS | F16: =ROUND(E16*SUMIF(PFP!$B$8:$B$20,"MO2",PFP!$J$8:$J$20),2) -> 0
A17: A9 | B17: SECONCI | F17: =ROUND(E17*SUMIF(PFP!$B$8:$B$20,"MO2",PFP!$J$8:$J$20),2) -> 0
A18: B | B18: ENCARGOS SOCIAIS QUE RECEBEM INCIDÊNCIA DE "A" | E18: =ROUND(SUM(E19:E25),4) -> 0 | F18: =ROUND(E18*SUMIF(PFP!$B$8:$B$20,"MO2",PFP!$J$8:$J$20),2) -> 0
A19: B3 | B19: Auxílio Enfermidade | F19: =ROUND(E19*SUMIF(PFP!$B$8:$B$20,"MO2",PFP!$J$8:$J$20),2) -> 0
A20: B4 | B20: 13º Salário | F20: =ROUND(E20*SUMIF(PFP!$B$8:$B$20,"MO2",PFP!$J$8:$J$20),2) -> 0
A21: B5 | B21: Licença Paternidade | F21: =ROUND(E21*SUMIF(PFP!$B$8:$B$20,"MO2",PFP!$J$8:$J$20),2) -> 0
A22: B6 | B22: Faltas Justificadas | F22: =ROUND(E22*SUMIF(PFP!$B$8:$B$20,"MO2",PFP!$J$8:$J$20),2) -> 0
A23: B8 | B23: Auxílio Acidente de Trabalho | F23: =ROUND(E23*SUMIF(PFP!$B$8:$B$20,"MO2",PFP!$J$8:$J$20),2) -> 0
A24: B9 | B24: Férias Gozadas | F24: =ROUND(E24*SUMIF(PFP!$B$8:$B$20,"MO2",PFP!$J$8:$J$20),2) -> 0
A25: B10 | B25: Salário Maternidade | F25: =ROUND(E25*SUMIF(PFP!$B$8:$B$20,"MO2",PFP!$J$8:$J$20),2) -> 0
A26: C | B26: ENCARGOS SOCIAIS QUE NÃO RECEBEM INCIDÊNCIA DE "A" | E26: =ROUND(SUM(E27:E31),4) -> 0 | F26: =ROUND(E26*SUMIF(PFP!$B$8:$B$20,"MO2",PFP!$J$8:$J$20),2) -> 0
A27: C1 | B27: Aviso Prévio Indenizado | F27: =ROUND(E27*SUMIF(PFP!$B$8:$B$20,"MO2",PFP!$J$8:$J$20),2) -> 0
A28: C2 | B28: Aviso Prévio Trabalhado | F28: =ROUND(E28*SUMIF(PFP!$B$8:$B$20,"MO2",PFP!$J$8:$J$20),2) -> 0
A29: C3 | B29: Férias Indenizadas | F29: =ROUND(E29*SUMIF(PFP!$B$8:$B$20,"MO2",PFP!$J$8:$J$20),2) -> 0
A30: C4 | B30: Depósito Rescisão Sem Justa Causa | F30: =ROUND(E30*SUMIF(PFP!$B$8:$B$20,"MO2",PFP!$J$8:$J$20),2) -> 0
A31: C5 | B31: Indenização Adicional | F31: =ROUND(E31*SUMIF(PFP!$B$8:$B$20,"MO2",PFP!$J$8:$J$20),2) -> 0
A32: D | B32: REINCIDÊNCIAS | E32: =ROUND(SUM(E33:E34),4) -> 0 | F32: =ROUND(E32*SUMIF(PFP!$B$8:$B$20,"MO2",PFP!$J$8:$J$20),2) -> 0
A33: D1 | B33: Reincidência de "A" sobre "B" | F33: =ROUND(E33*SUMIF(PFP!$B$8:$B$20,"MO2",PFP!$J$8:$J$20),2) -> 0
A34: D2 | B34: Reincidência de "A" sobre Aviso Prévio Trabalhado e reincidência do FGTS sobre Aviso Prévio Indenizado | F34: =ROUND(E34*SUMIF(PFP!$B$8:$B$20,"MO2",PFP!$J$8:$J$20),2) -> 0
A35: K1b | B35: ENCARGOS SOCIAIS | E35: =ROUND(E8+E18+E26+E32,4) -> 0.2 | F35: =ROUND(E35*SUMIF(PFP!$B$8:$B$20,"MO2",PFP!$J$8:$J$20),2) -> 0
A36: Kb | B36: TAXA DE RESSARCIMENTO DE DESPESAS E ENCARGOS SOBRE MO2 | E36: =ROUND((1+E35+PFP3_FatorKd!E13)*(1+PFP3_FatorKd!E12)*(1+PFP3_FatorKd!E8),4) -> 1.6645
A37: OBSERVAÇÃO: AUTÔNOMOS E EQUIVALENTES
A38: 1 - DISCRIMINAR OS ENCARGOS SOCIAIS COM SEUS RESPECTIVOS PERCENTUAS TOTALIZANDO OS MESMOS.
A39: 2 - APLICAR O % TOTAL P/ CALCULAR OS E. SOCIAIS INCIDENTES NA MÃO-DE-OBRA AUTONÔMOS
A40: Kb - Taxa de Ressarcimento de Despesas e Encargos sobre a Mão de Obra AUTONÔMA (incide apenas no Insumo Codigo MO2)
A41: Kb = (1 + K1 + K2) x (1 + K3) x (1 + K4)

Sheet PFP2.3_FatorKc
A1: DETALHAMENTO DOS ENCARGOS SOCIAIS: Kc | F1: CODIGO:
F2: PFP-2.3
A3: NOME DA CONSULTORA:
A5: PROJETO: | C5: CONTRATANTE: | F5: =PFP!J5 -> BASE: Nov/2023
A6: =PFP!A6 -> DIAGNÓSTICO E READEQUAÇÃO DE PROJETO BÁSICO PARA CONCLUSÃO DO SISTEMA DE ABASTECIMENTO DE ÁGUA PARA CONSUMO HUMANO EM COMUNIDADES DIFUSAS DO MUNICÍPIO DE PÃO DE AÇÚCAR, NO ESTADO DE ALAGOAS. | C6: CODEVASF (SEDE) | F6: =PFP!J6 -> PROP: Nov/2023 CODEVASF: fev/2020 SICRO/AL: Julho/2023 EMBASA: Maio/2023 ORSE: Set/2023 SINAPI: Set/2023
A7: Cod | B7: DESCRIÇÃO | E7: % | F7: R$
A8: A | B8: ENCARGOS SOCIAIS BÁSICOS | E8: =SUM(E9:E17) -> 0 | F8: =ROUND(E8*SUMIF(PFP!$B$8:$B$20,"MO3",PFP!$J$8:$J$20),2) -> 0
A9: A1 | B9: INSS | F9: =ROUND(E9*SUMIF(PFP!$B$8:$B$20,"MO3",PFP!$J$8:$J$20),2) -> 0
A10: A2 | B10: SESI | F10: =ROUND(E10*SUMIF(PFP!$B$8:$B$20,"MO3",PFP!$J$8:$J$20),2) -> 0
A11: A3 | B11: SENAI | F11: =ROUND(E11*SUMIF(PFP!$B$8:$B$20,"MO3",PFP!$J$8:$J$20),2) -> 0
A12: A4 | B12: INCRA | F12: =ROUND(E12*SUMIF(PFP!$B$8:$B$20,"MO3",PFP!$J$8:$J$20),2) -> 0
A13: A5 | B13: SEBRAE | F13: =ROUND(E13*SUMIF(PFP!$B$8:$B$20,"MO3",PFP!$J$8:$J$20),2) -> 0
A14: A6 | B14: Salário Educação | F14: =ROUND(E14*SUMIF(PFP!$B$8:$B$20,"MO3",PFP!$J$8:$J$20),2) -> 0
A15: A7 | B15: Seguro Contra Acidentes de Trabalho | F15: =ROUND(E15*SUMIF(PFP!$B$8:$B$20,"MO3",PFP!$J$8:$J$20),2) -> 0
A16: A8 | B16: FGTS | F16: =ROUND(E16*SUMIF(PFP!$B$8:$B$20,"MO3",PFP!$J$8:$J$20),2) -> 0
A17: A9 | B17: SECONCI | F17: =ROUND(E17*SUMIF(PFP!$B$8:$B$20,"MO3",PFP!$J$8:$J$20),2) -> 0
A18: B | B18: ENCARGOS SOCIAIS QUE RECEBEM INCIDÊNCIA DE "A" | E18: =ROUND(SUM(E19:E25),4) -> 0 | F18: =ROUND(E18*SUMIF(PFP!$B$8:$B$20,"MO3",PFP!$J$8:$J$20),2) -> 0
A19: B3 | B19: Auxílio Enfermidade | F19: =ROUND(E19*SUMIF(PFP!$B$8:$B$20,"MO3",PFP!$J$8:$J$20),2) -> 0
A20: B4 | B20: 13º Salário | F20: =ROUND(E20*SUMIF(PFP!$B$8:$B$20,"MO3",PFP!$J$8:$J$20),2) -> 0
A21: B5 | B21: Licença Paternidade | F21: =ROUND(E21*SUMIF(PFP!$B$8:$B$20,"MO3",PFP!$J$8:$J$20),2) -> 0
A22: B6 | B22: Faltas Justificadas | F22: =ROUND(E22*SUMIF(PFP!$B$8:$B$20,"MO3",PFP!$J$8:$J$20),2) -> 0
A23: B8 | B23: Auxílio Acidente de Trabalho | F23: =ROUND(E23*SUMIF(PFP!$B$8:$B$20,"MO3",PFP!$J$8:$J$20),2) -> 0
A24: B9 | B24: Férias Gozadas | F24: =ROUND(E24*SUMIF(PFP!$B$8:$B$20,"MO3",PFP!$J$8:$J$20),2) -> 0
A25: B10 | B25: Salário Maternidade | F25: =ROUND(E25*SUMIF(PFP!$B$8:$B$20,"MO3",PFP!$J$8:$J$20),2) -> 0
A26: C | B26: ENCARGOS SOCIAIS QUE NÃO RECEBEM INCIDÊNCIA DE "A" | E26: =ROUND(SUM(E27:E31),4) -> 0 | F26: =ROUND(E26*SUMIF(PFP!$B$8:$B$20,"MO3",PFP!$J$8:$J$20),2) -> 0
A27: C1 | B27: Aviso Prévio Indenizado | F27: =ROUND(E27*SUMIF(PFP!$B$8:$B$20,"MO3",PFP!$J$8:$J$20),2) -> 0
A28: C2 | B28: Aviso Prévio Trabalhado | F28: =ROUND(E28*SUMIF(PFP!$B$8:$B$20,"MO3",PFP!$J$8:$J$20),2) -> 0
A29: C3 | B29: Férias Indenizadas | F29: =ROUND(E29*SUMIF(PFP!$B$8:$B$20,"MO3",PFP!$J$8:$J$20),2) -> 0
A30: C4 | B30: Depósito Rescisão Sem Justa Causa | F30: =ROUND(E30*SUMIF(PFP!$B$8:$B$20,"MO3",PFP!$J$8:$J$20),2) -> 0
A31: C5 | B31: Indenização Adicional | F31: =ROUND(E31*SUMIF(PFP!$B$8:$B$20,"MO3",PFP!$J$8:$J$20),2) -> 0
A32: D | B32: REINCIDÊNCIAS | E32: =ROUND(SUM(E33:E34),4) -> 0 | F32: =ROUND(E32*SUMIF(PFP!$B$8:$B$20,"MO3",PFP!$J$8:$J$20),2) -> 0
A33: D1 | B33: Reincidência de "A" sobre "B" | F33: =ROUND(E33*SUMIF(PFP!$B$8:$B$20,"MO3",PFP!$J$8:$J$20),2) -> 0
A34: D2 | B34: Reincidência de "A" sobre Aviso Prévio Trabalhado e reincidência do FGTS sobre Aviso Prévio Indenizado | F34: =ROUND(E34*SUMIF(PFP!$B$8:$B$20,"MO3",PFP!$J$8:$J$20),2) -> 0
A35: K1c | B35: ENCARGOS SOCIAIS | E35: =ROUND(E8+E18+E26+E32,4) -> 0 | F35: =ROUND(E35*SUMIF(PFP!$B$8:$B$20,"MO3",PFP!$J$8:$J$20),2) -> 0
A36: Kc | B36: TAXA DE RESSARCIMENTO DE DESPESAS E ENCARGOS SOBRE MO3 | E36: =ROUND((1+E35+PFP3_FatorKd!E13)*(1+PFP3_FatorKd!E12)*(1+PFP3_FatorKd!E8),4) -> 1.4179
A37: OBSERVAÇÃO: SOCIETÁRIOS E EQUIVALENTES
A38: 1 - DISCRIMINAR OS ENCARGOS SOCIAIS COM SEUS RESPECTIVOS PERCENTUAS TOTALIZANDO OS MESMOS.
A39: 2 - APLICAR O % TOTAL P/ CALCULAR OS E. SOCIAIS INCIDENTES NA MÃO-DE-OBRA DE SOCIETÁRIOS
A40: Kc - Taxa de Ressarcimento de Despesas e Encargos sobre a Mão de Obra SOCIETÁRIA (incide apenas no Insumo Codigo MO3)
A41: Kc = (1 + K1 + K2) x (1 + K3) x (1 + K4)

Sheet PFP3_FatorKd
A1: DESPESAS FISCAIS E CUSTOS DIVERSOS: Kc | F1: CODIGO:
F2: PFP-3
A3: NOME DA CONSULTORA:
A5: PROJETO: | C5: CONTRATANTE: | F5: =PFP!J5 -> BASE: Nov/2023
A6: =PFP!A6 -> DIAGNÓSTICO E READEQUAÇÃO DE PROJETO BÁSICO PARA CONCLUSÃO DO SISTEMA DE ABASTECIMENTO DE ÁGUA PARA CONSUMO HUMANO EM COMUNIDADES DIFUSAS DO MUNICÍPIO DE PÃO DE AÇÚCAR, NO ESTADO DE ALAGOAS. | C6: CODEVASF (SEDE) | F6: =PFP!J6 -> PROP: Nov/2023 CODEVASF: fev/2020 SICRO/AL: Julho/2023 EMBASA: Maio/2023 ORSE: Set/2023 SINAPI: Set/2023
A7: Cod | B7: DESCRIÇÃO1 | D7: % preço2 | E7: % custo4 | F7: R$
A8: K4 | B8: TRIBUTOS | D8: =ROUND(D9+D10+D11,4) -> 0.124 | E8: =ROUND(E9+E10+E11,4) -> 0.1416 | F8: =E8*SUM(SUMIF(PFP!$B$8:$B$20,"MO1",PFP!$J$8:$J$20)*(1+PFP2.1_FatorKa!$E$35)+SUMIF(PFP!$B$8:$B$20,"MO2",PFP!$J$8:$J$20)*(1+PFP2.2_FatorKb!$E$35)+SUMIF(PFP!$B$8:$B$20,"<>MO*",PFP!$J$8:$J$20)+$F$13+$F$12) -> 0
A9: K4.1 | B9: ISS | D9: 0.05 | E9: 0.0571 | F9: =E9*SUM(SUMIF(PFP!$B$8:$B$20,"MO1",PFP!$J$8:$J$20)*(1+PFP2.1_FatorKa!$E$35)+SUMIF(PFP!$B$8:$B$20,"MO2",PFP!$J$8:$J$20)*(1+PFP2.2_FatorKb!$E$35)+SUMIF(PFP!$B$8:$B$20,"<>MO*",PFP!$J$8:$J$20)+$F$13+$F$12) -> 0
A10: K4.2 | B10: PIS3 - aliquota efetiva aplicavel percentual-desconto | D10: 0.0132 | E10: 0.0151 | F10: =E10*SUM(SUMIF(PFP!$B$8:$B$20,"MO1",PFP!$J$8:$J$20)*(1+PFP2.1_FatorKa!$E$35)+SUMIF(PFP!$B$8:$B$20,"MO2",PFP!$J$8:$J$20)*(1+PFP2.2_FatorKb!$E$35)+SUMIF(PFP!$B$8:$B$20,"<>MO*",PFP!$J$8:$J$20)+$F$13+$F$12) -> 0
A11: K4.3 | B11: COFINS3 - aliquota efetiva aplicavel percentual-desconto | D11: 0.0608 | E11: 0.0694 | F11: =E11*SUM(SUMIF(PFP!$B$8:$B$20,"MO1",PFP!$J$8:$J$20)*(1+PFP2.1_FatorKa!$E$35)+SUMIF(PFP!$B$8:$B$20,"MO2",PFP!$J$8:$J$20)*(1+PFP2.2_FatorKb!$E$35)+SUMIF(PFP!$B$8:$B$20,"<>MO*",PFP!$J$8:$J$20)+$F$13+$F$12) -> 0
A12: K3 | B12: REMUNERAÇÃO DA EMPRESA (LUCRO) | E12: 0.08 | F12: =E12*SUM(SUMIF(PFP!$B$8:$B$20,"MO1",PFP!$J$8:$J$20)*(1+PFP2.1_FatorKa!$E$35)+SUMIF(PFP!$B$8:$B$20,"MO2",PFP!$J$8:$J$20)*(1+PFP2.2_FatorKb!$E$35)+SUMIF(PFP!$B$8:$B$20,"<>MO*",PFP!$J$8:$J$20)+$F$13) -> 0
A13: K2 | B13: CUSTOS DA ADMINISTRAÇÃO CENTRAL | E13: =ROUND(SUM(E14:E16),4) -> 0.15 | F13: =ROUND(E13*SUMIF(PFP!$B$8:$B$20,"MO*",PFP!$J$8:$J$20),2) -> 0
A14: K2.1 | B14: Custos da administração central da empresa (diretoria, pessoal técnico de apoio e pessoal administrativo não diretamente vinculado à prestação dos serviços) | E14: 0.1 | F14: =ROUND(E14*SUMIF(PFP!$B$8:$B$20,"MO*",PFP!$J$8:$J$20),2) -> 0
A15: K2.2 | B15: Outras despesas que afetam o custo de produção como treinamento, biblioteca, programa de qualidade, programa de benefícios, auditoria interna e externa | E15: 0.03 | F15: =ROUND(E15*SUMIF(PFP!$B$8:$B$20,"MO*",PFP!$J$8:$J$20),2) -> 0
A16: K2.3 | B16: Despesas fixas e variaveis com patrimônio, aluguéis, comunicação, manutenção e transporte não diretamente relacionados com o custo direto dos serviços | E16: 0.02 | F16: =ROUND(E16*SUMIF(PFP!$B$8:$B$20,"MO*",PFP!$J$8:$J$20),2) -> 0
A17: Kd | B17: TAXA RESSARCIMENTO DE DESPESAS SOBRE CUSTOS DIVERSOS | E17: =ROUND((1+E12)*(1+E8),4) -> 1.2329
A18: NOME DO INFORMANTE: | E18: QUALIFICAÇÃO:
A20: ASSINATURA: | E20: DATA:
A22: Observação:
A23: 1 - RELACIONAR OS CUSTOS DE ADMINISTRAÇÃO COM RESPECTIVOS PERCENTUAIS INCIDENTES NA MÃO -DE-OBRA
A24: 1 - DISCRIMINAR OS TRIBUTOS QUE INCIDEM SOBRE OS CUSTOS DA PRESTAÇÃO DOS SERVIÇOS
A25: 2 - K4 = INDICAR % DE CADA TRIBUTO E A SOMA DOS MESMOS (ex: ISS 5% + PIS 1,65% + COFINS 7,60% = 14,25%)
A26: 3 - PIS e COFINS, Regime de Incidencia Acumulativa (0,65% e 3,00% - sem percentual de desconto) ou em Regime de Incidencia Não Acumulativa (1,65% e 7,60% - aplicável percentual de desconto) de acordo com a forma de apuração do lucro no IRPJ. APRESENTAR COMPROVANTES de aproveitamento de créditos tributários dos últimos 12 meses em caso de aplicação de "percentual de desconto".
A27: 4 - AS DESPESAS FISCAIS (K4) INCIDEM SOBRE O TOTAL DA FATURA E NÃO SOBRE OS CUSTOS INCORRIDOS,
A28: DEVENDO SER CALCULADO O K4' APLICANDO-SE A SEGUINTE FÓRMULA:
A29: K4' = { [ 1 / ( 1 - K4) ] - 1 } x 100
A30: =CONCATENATE(" K4' = { [ 1 / ( 1 - ",D8," ) ] - 1 } x 100") -> K4' = { [ 1 / ( 1 - 0,124 ) ] - 1 } x 100
A31: Kc - Taxa de Ressarcimento de Despesas sobre Custos Diversos (incide sobre os Insumos Codigo DP e EM)
A32: Kc = (1 + K3) x (1 + K4)
A33: K2 - Incide sobre o Custo Total (CT) da Mão de Obra (MO* = MO1 + MO2)
A34: K3 - Incide sobre o Custo Total (CT) Mão de Obra com encargos (MO1 x Ka ou MO2 x Kb), demais Custos (DP e EM), e Custos da Administração Central (K2)
A35: K4 - Incide sobre o Custo Total (CT) Mão de Obra com encargos (MO1 x Ka ou MO2 x Kb), demais Custos (DP e EM), e Custos da Administração Central (K2) e Lucro (K3)

Sheet CRO1_Ins-Pro
A1: INSUMOS POR ETAPA/PRODUTO | H1: CODIGO:
H2: CRO-1
A3: Cod. | B3: Categoria / Insumo | C3: Uni | D3: Qde | E3: CUD | F3: PU | G3: FatorK | H3: Etapa 1 | I3: Etapa 2 | J3: Etapa 3 | K3: Etapa 4
G4: Meses | H4: 1 | I4: 1 | J4: 1 | K4: 1
A5: =PFP!C8 -> P0 | B5: =PFP!D8 -> Engenheiro coordenador (P8061) | C5: mês | D5: 0.5 | E5: =PFP!G8 -> 0 | F5: =PFP!H8 -> 0 | G5: =PFP!I8 -> 1.4179 | H5: 0.2 | J5: 0.2 | K5: 0.1
A6: =PFP!C9 -> P1 | B6: =PFP!D9 -> Engenheiro sênior (P8067) | C6: mês | D6: 0.5 | E6: =PFP!G9 -> 0 | F6: =PFP!H9 -> 0 | G6: =PFP!I9 -> 1.6645 | H6: 0.2 | J6: 0.2 | K6: 0.1
A7: =PFP!C10 -> P2 | B7: =PFP!D10 -> Engenheiro pleno (P8066) | C7: mês | D7: 2 | E7: =PFP!G10 -> 0 | F7: =PFP!H10 -> 0 | G7: =PFP!I10 -> 2.2776 | H7: 0.5 | J7: 0.5 | K7: 1
A8: =PFP!C11 -> P3 | B8: =PFP!D11 -> Engenheiro júnior (P8065) | C8: mês | D8: 2 | E8: =PFP!G11 -> 0 | F8: =PFP!H11 -> 0 | G8: =PFP!I11 -> 2.2776 | H8: 0.5 | J8: 0.5 | K8: 1
A9: =PFP!C12 -> T1 | B9: =PFP!D12 -> Técnico de projetos/obra (P8147) | C9: mês | D9: 3 | E9: =PFP!G12 -> 0 | F9: =PFP!H12 -> 0 | G9: =PFP!I12 -> 2.2776 | H9: 0.5 | J9: 1 | K9: 1.5
A10: =PFP!C13 -> ECA | B10: =PFP!D13 -> Encargos Comp. e Adicionais | C10: mês | D10: 7.5 | E10: =PFP!G13 -> 0 | F10: =PFP!H13 -> 0 | G10: =PFP!I13 -> 1.2329 | H10: =SUM(H6:H9) -> 1.7 | J10: =SUM(J6:J9) -> 2.2 | K10: =SUM(K6:K9) -> 3.6
A11: =PFP!C14 -> AT2 | B11: =PFP!D14 -> Auxilio Transporte Técnicos | C11: mês | D11: 3 | E11: =PFP!G14 -> 0 | F11: =PFP!H14 -> 0 | G11: =PFP!I14 -> 1.2329 | H11: =H9 -> 0.5 | J11: =J9 -> 1 | K11: =K9 -> 1.5
A12: =PFP!C15 -> V1 | B12: =PFP!D15 -> Diárias | C12: dia | D12: 40 | E12: =PFP!G15 -> 0 | F12: =PFP!H15 -> 0 | G12: =PFP!I15 -> 1.2329 | H12: 15 | I12: 9 | J12: 8 | K12: 8
A13: =PFP!C16 -> V2 | B13: =PFP!D16 -> Pick-up cabine dupla 4x4, com ar-condicionado, incluindo despesas com combustível, óleos, conservação e manutenção | C13: un | D13: 10 | E13: =PFP!G16 -> 0 | F13: =PFP!H16 -> 0 | G13: =PFP!I16 -> 1.2329 | H13: 3 | I13: 3 | J13: 2 | K13: 2
A14: =PFP!C17 -> M1 | B14: =PFP!D17 -> Relatório Parcial | C14: un | D14: 3 | E14: =PFP!G17 -> 0 | F14: =PFP!H17 -> 0 | G14: =PFP!I17 -> 1.2329 | H14: 1 | I14: 1 | J14: 1
A15: =PFP!C18 -> M2 | B15: =PFP!D18 -> Relatório Final | C15: un | D15: 1 | E15: =PFP!G18 -> 0 | F15: =PFP!H18 -> 0 | G15: =PFP!I18 -> 1.2329 | K15: 1
A16: =PFP!C19 -> TOP | B16: =PFP!D19 -> Total Serviços Topográficos | C16: un | D16: 1 | E16: =PFP!G19 -> - | F16: =PFP!H19 -> 0 | G16: =PFP!I19 -> - | I16: 1
A17: =PFP!C20 -> TÉC | B17: =PFP!D20 -> Total Serviços Técnicos | C17: un | D17: 1 | E17: =PFP!G20 -> - | F17: =PFP!H20 -> 0 | G17: =PFP!I20 -> - | H17: 1
A18: =PFP!C21 -> GEO | B18: =PFP!D21 -> Total Serviços Geotécnicos | C18: un | D18: 1 | E18: =PFP!G21 -> - | F18: =PFP!H21 -> 0 | G18: =PFP!I21 -> - | H18: 1
A19: =PFP!C22 -> AMB | B19: =PFP!D22 -> Total Serviços Ambientais | C19: un | D19: 1 | E19: =PFP!G22 -> - | F19: =PFP!H22 -> 0 | G19: =PFP!I22 -> - | H19: 1
A20: TOTAL | B20: VALOR TOTAL POR PRODUTO POR SISTEMA | C20: R$ | D20: =SUM(H20:K20) -> 0 | H20: =ROUND(SUM(H24:H38),2) -> 0 | I20: =ROUND(SUM(I24:I38),2) -> 0 | J20: =ROUND(SUM(J24:J38),2) -> 0 | K20: =ROUND(SUM(K24:K38),2) -> 0
C21: % | H21: =ROUND(H20/$D$20,5) ->  | I21: =ROUND(I20/$D$20,5) -> 
H24: =$F5*H5 -> 0 | I24: =$F5*I5 -> 0 | J24: =$F5*J5 -> 0 | K24: =$F5*K5 -> 0
H25: =$F6*H6 -> 0 | I25: 0 | J25: 0 | K25: =ROUND($F6*K6,2) -> 0
H26: 0 | I26: 0 | J26: 0 | K26: =$F7*K7 -> 0
H27: 0 | I27: 0 | J27: 0 | K27: 0
H28: 0 | I28: 0 | J28: 0 | K28: 0
H29: 0 | I29: 0 | J29: 0 | K29: 0
H30: 0 | I30: 0 | J30: 0 | K30: 0
H31: 0 | I31: 0 | J31: 0 | K31: 0
H32: 0 | I32: 0 | J32: 0 | K32: 0
H33: 0 | I33: 0 | J33: 0 | K33: 0
H34: 0 | I34: 0 | J34: 0 | K34: 0
H35: 0 | I35: 0 | J35: 0 | K35: 0
H36: 0 | I36: 0 | J36: 0 | K36: 0
H37: 0 | I37: 0 | J37: 0 | K37: 0
H38: =$F19*H19 -> 0 | I38: 0 | J38: 0 | K38: 0

Sheet CCU VEÍCULO
C1: Ministério do Desenvolvimento Regional-MDR
C2: Companhia de Desenvolvimento dos Vales do São Francisco e do Parnaíba
C3: 5ª Superintendência Regional
B5: CCU VEÍCULO | C5: FORNECIMENTO DE PICK-UP CABINE DUPLA 4x4, COM AR-CONDICIONADO, INCLUINDO DESPESAS COM COMBUSTÍVEL, ÓLEOS, CONSERVAÇÃO E MANUTENÇÃO.
B9: A | C9: Depreciação mensal do equipamento
B10: A1 | C10: Preço de Aquisição
B11: A2 | C11: Tempo previsto de vida útil (meses) | D11: 36
B12: A3 | C12: Previsão de recup. na venda do bem usado | D12: 0.4
B13: A4 | C13: Custo mensal [A1-(A3xA1)]/A2 | D13: =(D10-(D12*D10))/D11 -> 0
B15: B | C15: Juros pelo Capital empregado
B16: B1 | C16: Taxa mensal de Juros | D16: 0.05
B17: B2 | C17: Juros s/depreciação/aluguel (B1xA4) | D17: =D16*D13 -> 0
B19: C | C19: Conservação e manutenção
B20: C1 | C20: Taxa de gastos s/a deprec. Inc. seguros (%) | D20: 1
B21: C2 | C21: Incidência mensal (C1xA4) | D21: =D20*D13 -> 0
B23: D | C23: Combustível
B24: D1 | C24: Média mensal de quilômetro por veículo | D24: 3000
B25: D2 | C25: Preço do litro de combustível
B26: D3 | C26: Quilômetros rodados com um litro combustivel | D26: 10
B27: D4 | C27: Combustivel (D1/D3)*D2 | D27: =(D24/D26)*D25 -> 0
B29: E | C29: Lubrificantes
B30: E1 | C30: Quilometragem do Contrato | D30: 36000
B31: E2 | C31: Franquia por troca de óleo (km) | D31: 5000
B32: E3 | C32: Preço do litro de óleo
B33: E4 | C33: Quantidade de litros de óleo por troca | D33: 3.5
B34: E5 | C34: Quantidade de dias do Contrato | D34: =D42 -> 365
B35: E6 | C35: Lubrificantes E = (E1*E3*E4*30)/E2*E5 | D35: =(D30*D32*D33*30)/(D31*D34) -> 0
B37: F | C37: Pneus
B38: F1 | C38: Quilometragem do Contrato | D38: =D30 -> 36000
B39: F2 | C39: Vida do Pneu em quilômetros | D39: 45000
B40: F3 | C40: Quantidade de pneus | D40: 5
B41: F4 | C41: Preço do Pneu
B42: F5 | C42: Quantidade de dias do contrato | D42: 365
B43: F6 | C43: Pneus = (F1*F3*F4*30)/(F2*F5) | D43: =(D38*D40*D41*30)/(D39*D42) -> 0
B45: G | C45: Motorista
B46: G1 | C46: Salário com encargos sociais
B48: H | C48: Custo Mensal
C49: Sem Motorista | D49: =D43+D35+D27+D21+D17+D13 -> 0
C50: Com Motorista
B52: I | C52: Custo por dia (30 dias)
C53: Sem Motorista | D53: =ROUND(D49/30,2) -> 0
C54: Com Motorista | D54: =D50/D24 -> 0
